bitfinex-derivatives/quotes_BTCF0:USTF0_20250212
["timestamp","ask_amount","ask_price","bid_price","bid_amount"]
[1739367131417,0.3608,95092.0,95080.0,0.00015778]
[1739367131623,0.3608,95081.0,95080.0,0.00015778]
[1739367131812,0.3608,95081.0,95030.0,0.0015783]
[1739367132113,0.3608,95039.0,95030.0,0.0015783]
[1739367132314,0.3608,95031.0,95030.0,0.0015783]
[1739367132514,0.3608,95031.0,95000.0,0.1]
[1739367132717,0.3608,95003.0,95000.0,0.1]
[1739367132915,0.3608,95001.0,95000.0,0.1]
[1739367133121,0.3608,95001.0,94981.0,0.00157974]
[1739367133425,0.7216,94982.0,94938.0,0.2106525]
[1739367133611,0.7216,94982.0,94930.0,0.36062398]
[1739367133612,0.3608,94968.0,94941.0,0.2106459]
[1739367133812,0.3608,94982.0,94950.0,0.36062398]
[1739367134130,0.3608,94987.0,94953.0,0.3608]
[1739367134318,0.00015796,94977.0,94953.0,0.3608]
[1739367134717,0.7216,94955.0,94910.0,0.36062398]
[1739367134927,0.3608,94944.0,94917.0,0.3608]
[1739367135119,8.572e-05,94943.0,94930.0,0.36062398]
[1739367135319,0.00012725,94942.0,94930.0,0.36062398]
[1739367135514,0.3608,94939.0,94919.0,0.3608]
[1739367135715,0.00015796,94946.0,94910.0,0.36122398]
[1739367135915,0.3608,94929.0,94901.0,1.5]
[1739367136119,0.3608,94920.0,94910.0,0.36062398]
[1739367136316,0.00011632,94928.0,94919.0,0.3608]
[1739367136522,0.3608,94983.0,94927.0,0.3608]
[1739367136829,0.778,95028.0,94918.0,0.36062398]
[1739367136830,0.00015796,94933.0,94918.0,0.36062398]
[1739367137026,0.00015796,94933.0,94920.0,0.36062398]
[1739367137321,0.36062398,94990.0,94920.0,0.36062398]
[1739367137322,0.3608,95002.0,94931.0,0.3608]
[1739367137525,0.65208001,95026.0,94977.0,0.3608]
[1739367137824,0.3608,94997.0,94948.0,0.3608]
[1739367138016,0.00015796,94976.0,94957.0,0.3608]
[1739367138324,0.00015796,94976.0,94946.0,0.00158031]
[1739367138325,0.00015796,94976.0,94969.0,0.3608]
[1739367138712,0.30015796,94976.0,94970.0,0.3608]
[1739367138914,0.3608,94972.0,94946.0,0.00158031]
[1739367139113,0.3608,94947.0,94946.0,0.00158031]
[1739367139324,0.00108001,94955.0,94946.0,0.00158031]
[1739367139520,0.00015796,94976.0,94946.0,0.00158031]
[1739367139521,0.3608,94975.0,94946.0,0.00158031]
[1739367139725,0.3608,94949.0,94946.0,0.00158031]
[1739367139916,0.3608,94958.0,94939.0,0.3608]
[1739367140118,0.3608,94958.0,94914.0,0.00158085]
[1739367140119,0.00015796,94970.0,94957.0,0.3608]
[1739367140323,0.00015796,94970.0,94918.0,0.3608]
[1739367140520,0.00015796,94970.0,94958.0,0.3608]
[1739367140725,0.3914,94989.0,94968.0,0.3608]
[1739367140925,0.1899,94989.0,94962.0,0.3608]
[1739367141120,0.00015796,94973.0,94971.0,0.3608]
[1739367141327,0.00015796,94973.0,94950.0,0.3608]
[1739367141626,0.3608,94962.0,94910.0,0.36062398]
[1739367141823,0.3608,94941.0,94916.0,0.3608]
[1739367142221,0.3608,94917.0,94886.0,0.00158132]
[1739367142419,0.7216,94901.0,94862.0,0.3608]
[1739367142619,0.3608,94890.0,94862.0,0.3608]
[1739367142820,0.3608,94890.0,94860.0,0.36062398]
[1739367143022,0.3608,94901.0,94889.0,0.3608]
[1739367143217,0.3608,94929.0,94895.0,0.3608]
[1739367143426,0.3608,94926.0,94879.0,0.3608]
[1739367143618,0.3608,94905.0,94867.0,0.3608]
[1739367144024,0.3608,94924.0,94892.0,0.3608]
[1739367144324,0.3608,94924.0,94843.0,0.00158203]
[1739367144325,0.3608,94897.0,94868.0,0.3608]
[1739367144632,0.00015805,94895.0,94868.0,0.3608]
[1739367144836,0.00015805,94895.0,94843.0,0.00158203]
[1739367144837,0.3608,94888.0,94843.0,0.00158203]
[1739367145127,0.3608,94888.0,94825.0,0.3608]
[1739367145128,0.3608,94876.0,94844.0,0.3608]
[1739367145331,0.3608,94867.0,94828.0,0.2108962]
[1739367145522,0.3608,94884.0,94861.0,0.3608]
[1739367145724,0.00015813,94869.0,94851.0,0.3608]
[1739367145926,0.00015813,94869.0,94868.0,0.3608]
[1739367146132,0.00015813,94869.0,94863.0,0.3608]
[1739367146333,0.00015813,94869.0,94861.0,0.3608]
[1739367146542,0.23459903,94894.0,94861.0,0.3608]
[1739367146543,0.23459903,94894.0,94861.0,0.7216]
[1739367146727,0.23459903,94894.0,94774.0,0.0527543]
[1739367146728,0.23459903,94894.0,94890.0,0.3608]
[1739367147039,0.3608,94932.0,94890.0,0.3608]
[1739367147040,0.3608,94975.0,94907.0,0.3608]
[1739367147225,0.3608,94975.0,94881.0,0.01584]
[1739367147226,0.3608,94933.0,94903.0,0.3608]
[1739367147432,0.3608,94904.0,94860.0,0.36062398]
[1739367147734,0.3608,94904.0,94833.0,0.3608]
[1739367147735,0.3608,94900.0,94842.0,0.2108648]
[1739367147935,0.1,94890.0,94881.0,0.3608]
[1739367148134,0.1,94890.0,94873.0,0.00015804]
[1739367148430,0.1,94890.0,94889.0,1.5]
[1739367148632,0.1,94890.0,94888.0,0.3608]
[1739367148936,0.3608,94944.0,94888.0,0.04470524]
[1739367149124,0.3608,94929.0,94880.0,0.36062398]
[1739367149325,0.00210685,94928.0,94888.0,0.3608]
[1739367149629,0.00210685,94928.0,94858.0,0.00158178]
[1739367149630,0.3608,94904.0,94860.0,0.36062398]
[1739367149834,0.3608,94885.0,94860.0,0.36062398]
[1739367150028,0.3608,94906.0,94875.0,0.36062398]
[1739367150230,0.3608,94906.0,94890.0,0.36062398]
[1739367150425,0.3608,94906.0,94873.0,0.00015804]
[1739367150426,0.3608,94906.0,94875.0,0.3608]
[1739367150630,0.3608,94884.0,94873.0,0.00015804]
[1739367151037,0.3608,94892.0,94873.0,0.00015804]
[1739367151632,0.3608,94883.0,94873.0,0.00015804]
[1739367151837,0.17923118,94899.0,94882.0,0.3608]
[1739367152145,0.17923118,94899.0,94873.0,0.00015804]
[1739367152146,0.3608,94936.0,94892.0,0.3608]
[1739367152332,0.3608,94936.0,94900.0,0.3608]
[1739367152526,0.24386755,94939.0,94900.0,0.3608]
[1739367152828,0.24386755,94939.0,94920.0,0.3508]
[1739367153034,0.19811743,94925.0,94911.0,0.3608]
[1739367153239,0.3608,94929.0,94888.0,0.3608]
[1739367153537,0.00015804,94927.0,94909.0,0.00015804]
[1739367153843,0.00015804,94927.0,94923.0,0.3608]
[1739367154035,0.3608,94958.0,94923.0,0.3608]
[1739367154232,0.3608,94958.0,94945.0,0.3608]
[1739367154637,0.3608,94968.0,94945.0,0.3608]
[1739367154833,0.24386755,94979.0,94953.0,0.3608]
[1739367155133,0.24386755,94979.0,94972.0,0.36029]
[1739367155333,0.24386755,94979.0,94978.0,0.3608]
[1739367155531,0.3608,95049.0,94978.0,0.5713648]
[1739367155732,0.3608,95049.0,94999.0,0.7216]
[1739367156043,0.3608,95033.0,94999.0,0.58121911]
[1739367156237,0.09582435,95000.0,94999.0,0.88121911]
[1739367156442,0.09582435,95000.0,94999.0,1.09173731]
[1739367156936,0.3608,95077.0,94999.0,0.58121911]
[1739367157140,0.09582435,95056.0,95040.0,0.3608]
[1739367157335,0.09582435,95058.0,95040.0,0.72142398]
[1739367157534,0.3608,95094.0,95052.0,0.3608]
[1739367157535,0.09582435,95061.0,95052.0,0.3608]
[1739367157840,0.09582435,95061.0,95020.0,0.00157909]
[1739367157841,0.3608,95094.0,95037.0,0.3608]
[1739367158137,0.09582435,95022.0,95020.0,0.00157909]
[1739367158336,0.09582435,95021.0,95020.0,0.00157909]
[1739367159434,0.00015784,95030.0,95020.0,0.00157909]
[1739367159746,0.3608,95025.0,94990.0,0.3608]
[1739367159948,0.3608,95001.0,94980.0,0.00157974]
[1739367160239,0.3608,95009.0,94980.0,0.00157974]
[1739367160440,0.3608,94985.0,94980.0,0.00157974]
[1739367160647,0.7216,94985.0,94980.0,0.00157974]
[1739367160943,1.0216,94985.0,94932.0,0.3608]
[1739367161137,0.3608,94962.0,94932.0,0.3608]
[1739367161642,0.00015792,94992.0,94932.0,0.3608]
[1739367161643,0.00015792,94992.0,94971.0,0.2105791]
[1739367161943,0.3608,95039.0,94991.0,0.3608]
[1739367162144,0.2093,95097.0,94989.0,0.3608]
[1739367162145,0.3608,95032.0,94989.0,0.3608]
[1739367162348,0.3608,95022.0,94989.0,0.3608]
[1739367162544,0.3608,95011.0,94948.0,0.3608]
[1739367162738,0.3608,95001.0,94945.0,0.3608]
[1739367162935,0.3608,95001.0,94958.0,0.3608]
[1739367163139,0.3608,95001.0,94945.0,0.3608]
[1739367163140,0.3608,94989.0,94972.0,0.00015792]
[1739367163336,0.3608,94973.0,94972.0,0.00015792]
[1739367163540,0.3608,94973.0,94945.0,0.3608]
[1739367163749,0.3608,94973.0,94927.0,0.3608]
[1739367163949,0.3608,94963.0,94927.0,0.3608]
[1739367164345,0.3608,94963.0,94944.0,0.3608]
[1739367164544,0.3608,94963.0,94927.0,0.3608]
[1739367164746,0.3608,94973.0,94944.0,0.3608]
[1739367164951,0.00015792,94963.0,94960.0,0.3608]
[1739367165344,0.00015792,94963.0,94953.0,0.3608]
[1739367165549,0.00015792,94963.0,94944.0,0.00015792]
[1739367165750,0.00015792,94963.0,94929.0,0.3608]
[1739367166057,0.00015792,94963.0,94921.0,0.59026]
[1739367166058,0.00015792,94963.0,94953.0,0.3608]
[1739367166546,0.18792689,94972.0,94962.0,0.3608]
[1739367166740,0.052532,95176.0,94971.0,0.3608]
[1739367166741,0.3608,95042.0,94971.0,0.3608]
[1739367167056,0.2103245,95087.0,95041.0,0.3608]
[1739367167353,0.00210335,95086.0,95055.0,0.3608]
[1739367167655,0.2103447,95078.0,95055.0,0.3608]
[1739367167856,0.3158,95056.0,95055.0,0.3608]
[1739367168052,0.3608,95060.0,95021.0,0.0015787]
[1739367168252,0.3608,95039.0,95021.0,0.0015787]
[1739367168454,0.2104325,95038.0,95021.0,0.0015787]
[1739367168756,0.3608,95051.0,95021.0,0.0015787]
[1739367169056,0.00015778,95039.0,95034.0,0.3608]
[1739367169247,0.00015778,95039.0,95038.0,0.3608]
[1739367169652,0.00015778,95039.0,95038.0,0.6608]
[1739367169853,0.3608,95113.0,95038.0,0.6608]
[1739367169854,0.3608,95113.0,95048.0,0.3608]
[1739367170049,0.3608,95113.0,95095.0,0.3608]
[1739367170249,0.3608,95116.0,95095.0,0.3608]
[1739367170444,0.21182788,95078.0,95075.0,0.00157807]
[1739367170644,0.21182788,95078.0,95077.0,0.3608]
[1739367170850,0.21182788,95078.0,95077.0,0.7216]
[1739367171650,0.21182788,95078.0,95077.0,0.3608]
[1739367172148,0.21182788,95078.0,95075.0,0.00157807]
[1739367172554,0.21182788,95078.0,95077.0,0.3608]
[1739367172756,0.21182788,95078.0,95075.0,0.00157807]
[1739367173457,0.51182788,95078.0,95032.0,0.3608]
[1739367173652,0.3608,95046.0,95032.0,0.3608]
[1739367173853,0.36062398,95050.0,95021.0,0.3608]
[1739367174056,0.36062398,95050.0,95029.0,0.3608]
[1739367174558,0.3608,95043.0,95002.0,0.3608]
[1739367174858,0.5712222,95043.0,95030.0,0.00015778]
[1739367175358,0.2104762,95019.0,94975.0,0.3608]
[1739367175664,0.3608,95006.0,94975.0,0.3608]
[1739367176157,0.3608,94988.0,94952.0,0.3608]
[1739367176456,0.3608,94954.0,94934.0,0.00056]
[1739367176660,0.3608,94954.0,94930.0,0.3608]
[1739367176858,0.3608,94951.0,94930.0,0.3608]
[1739367177058,0.3608,94951.0,94883.0,1.0282]
[1739367177059,0.3608,94951.0,94885.0,0.3608]
[1739367177260,0.6608,94954.0,94885.0,0.3608]
[1739367177261,0.3608,94914.0,94885.0,0.3608]
[1739367177459,0.3608,94901.0,94885.0,0.3608]
[1739367177665,0.36062398,94900.0,94885.0,0.3608]
[1739367177854,0.3608,94886.0,94852.0,0.3608]
[1739367178053,0.3608,94886.0,94862.0,0.3608]
[1739367178253,0.3608,94886.0,94852.0,0.3608]
[1739367178759,0.00015805,94878.0,94867.0,0.3608]
[1739367178963,0.00015805,94878.0,94877.0,0.3608]
[1739367179173,0.3608,94925.0,94877.0,0.3608]
[1739367179354,0.3608,94925.0,94896.0,0.3608]
[1739367179560,0.3608,94935.0,94912.0,0.3608]
[1739367179757,0.3608,94935.0,94877.0,0.2107871]
[1739367179758,0.1810502,94906.0,94905.0,0.3608]
[1739367179958,0.1810502,94906.0,94891.0,0.3608]
[1739367180565,0.1810502,94906.0,94902.0,0.3608]
[1739367180865,0.36062398,94930.0,94903.0,0.3608]
[1739367181453,0.36062398,94913.0,94903.0,0.3608]
[1739367181656,0.3608,94906.0,94889.0,0.00015805]
[1739367181866,0.2107602,94890.0,94882.0,0.3608]
[1739367182065,0.2107838,94880.0,94852.0,0.3608]
[1739367182374,0.36062398,94880.0,94858.0,0.3608]
[1739367182561,0.36062398,94880.0,94876.0,0.3608]
[1739367182871,0.2107424,94898.0,94877.0,0.3608]
[1739367183163,0.3608,94949.0,94897.0,0.3608]
[1739367183358,0.36062398,94930.0,94921.0,0.3608]
[1739367183559,0.36062398,94950.0,94929.0,0.7216]
[1739367183761,0.36062398,94950.0,94949.0,0.7216]
[1739367183956,0.36062398,94950.0,94927.0,0.3608]
[1739367184266,0.00015805,94935.0,94922.0,0.00056]
[1739367184463,0.00015805,94935.0,94920.0,0.3608]
[1739367184860,0.2106936,94921.0,94908.0,0.3608]
[1739367185160,0.2107142,94911.0,94908.0,0.3608]
[1739367185359,0.2107364,94901.0,94879.0,0.3608]
[1739367185567,0.36062398,94920.0,94899.0,0.3608]
[1739367185758,0.29597897,94910.0,94899.0,0.3608]
[1739367185954,0.29597897,94930.0,94929.0,0.31604]
[1739367186163,0.29597897,94950.0,94933.0,0.31604]
[1739367186467,0.29597897,94970.0,94949.0,0.3608]
[1739367186661,0.29597897,94990.0,94969.0,0.3608]
[1739367186867,0.29597897,94990.0,94964.0,0.31604]
[1739367186868,0.2105644,94979.0,94964.0,0.31604]
[1739367187172,0.2105644,94979.0,94962.0,0.31604]
[1739367187464,0.2105797,94972.0,94952.0,0.3608]
[1739367187664,0.3608,94984.0,94972.0,0.31604]
[1739367187865,0.00015795,94989.0,94983.0,0.31604]
[1739367188073,0.00015795,94989.0,94988.0,0.31604]
[1739367188367,0.1,95000.0,94988.0,0.31604]
[1739367188567,0.1,95000.0,94998.0,0.31604]
[1739367188768,0.1,95000.0,94999.0,0.31604]
[1739367189264,0.2104565,95028.0,94999.0,0.31604]
[1739367189460,0.3608,95014.0,94979.0,0.3608]
[1739367189667,0.3608,95001.0,94971.0,0.31604]
[1739367189860,0.5713623,94980.0,94959.0,0.3608]
[1739367190070,0.3608,94971.0,94943.0,0.00064]
[1739367190263,0.3608,94971.0,94931.0,0.3608]
[1739367190459,0.2106056,94960.0,94921.0,0.00056]
[1739367190666,0.00108001,94981.0,94970.0,0.31604]
[1739367190870,0.3608,95019.0,94980.0,0.67684]
[1739367191067,0.2104883,95013.0,94988.0,0.67684]
[1739367191269,0.00210486,95018.0,95008.0,0.31604]
[1739367191571,0.00210486,95018.0,95017.0,0.31604]
[1739367191868,0.2104149,95046.0,95017.0,0.31604]
[1739367192064,0.00015795,95023.0,95008.0,0.3608]
[1739367192266,0.00015795,95023.0,95022.0,0.3608]
[1739367192461,0.2104307,95039.0,95021.0,0.31604]
[1739367192767,0.00015787,95032.0,95013.0,0.00015787]
[1739367192965,0.00015787,95032.0,95018.0,0.3608]
[1739367193172,0.00015787,95032.0,95031.0,0.31604]
[1739367193661,0.21182788,95051.0,95031.0,0.31604]
[1739367193861,0.21182788,95051.0,95046.0,0.31604]
[1739367194162,0.21182788,95051.0,95050.0,0.31604]
[1739367194462,0.3608,95093.0,95050.0,0.31604]
[1739367194463,0.21182788,95092.0,95050.0,0.31604]
[1739367194668,0.36306749,95080.0,95056.0,0.31604]
[1739367194972,0.2103501,95076.0,95063.0,0.31604]
[1739367195176,0.2103501,95076.0,95061.0,0.00015778]
[1739367195579,0.00015778,95081.0,95075.0,0.67684]
[1739367195777,0.00015778,95081.0,95080.0,0.31604]
[1739367196370,0.00015778,95081.0,95066.0,0.3608]
[1739367196788,0.00015778,95081.0,95080.0,0.31604]
[1739367196978,0.00015778,95081.0,95076.0,0.31604]
[1739367197176,0.00015778,95081.0,95080.0,0.31604]
[1739367197981,0.2101912,95147.0,95099.0,0.3608]
[1739367198174,0.21182788,95156.0,95142.0,0.3608]
[1739367198688,0.21182788,95156.0,95152.0,0.3608]
[1739367199069,0.21182788,95156.0,95155.0,0.3608]
[1739367199480,0.21182788,95156.0,95144.0,0.00015768]
[1739367199688,0.21182788,95156.0,95149.0,0.3608]
[1739367199872,9.587e-05,95164.0,95151.0,0.3608]
[1739367200183,9.587e-05,95164.0,95147.0,0.3608]
[1739367200780,0.2101889,95148.0,95144.0,0.00015768]
[1739367201376,9.587e-05,95164.0,95144.0,0.00015768]
[1739367201575,0.2101873,95149.0,95144.0,0.00015768]
[1739367201780,9.587e-05,95164.0,95144.0,0.00015768]
[1739367202169,9.587e-05,95164.0,95154.0,0.3608]
[1739367202375,0.2101614,95161.0,95144.0,0.00015768]
[1739367202577,0.7216,95145.0,95091.0,0.3608]
[1739367202778,0.2102684,95112.0,95111.0,0.3608]
[1739367202983,0.2102684,95112.0,95088.0,0.3608]
[1739367203291,0.3608,95130.0,95111.0,0.3608]
[1739367203481,0.2102112,95138.0,95111.0,0.3608]
[1739367203783,0.3608,95139.0,95111.0,0.3608]
[1739367204083,0.2102596,95116.0,95115.0,0.00015769]
[1739367204277,0.2102669,95113.0,95104.0,0.3608]
[1739367204675,0.3608,95105.0,95092.0,0.3608]
[1739367204875,0.3608,95097.0,95065.0,0.3608]
[1739367205075,0.3608,95089.0,95065.0,0.3608]
[1739367205383,0.3608,95136.0,95088.0,0.3608]
[1739367205683,0.2102252,95132.0,95122.0,0.3608]
[1739367205879,0.2102252,95132.0,95095.0,0.3608]
[1739367205880,0.36306749,95132.0,95095.0,0.3608]
[1739367206092,0.36306749,95132.0,95097.0,0.3608]
[1739367206279,0.2102878,95104.0,95097.0,0.3608]
[1739367206478,0.00015767,95122.0,95103.0,0.3608]
[1739367206678,0.00015767,95122.0,95121.0,0.3608]
[1739367207080,0.36306749,95170.0,95121.0,0.3608]
[1739367207281,0.36306749,95170.0,95104.0,0.00015767]
[1739367207282,0.3608,95169.0,95135.0,0.3608]
[1739367207586,0.210213,95138.0,95135.0,0.3608]
[1739367207785,0.2102282,95131.0,95124.0,0.3608]
[1739367208092,0.2102603,95116.0,95112.0,0.3608]
[1739367208289,0.2102828,95106.0,95096.0,0.3608]
[1739367208496,0.2103007,95098.0,95096.0,0.3608]
[1739367208976,0.3608,95119.0,95096.0,0.3608]
[1739367208977,0.00108001,95130.0,95096.0,0.3608]
[1739367209274,0.3608,95130.0,95116.0,0.13986546]
[1739367209478,0.2102485,95122.0,95116.0,0.13986546]
[1739367209688,0.00015767,95123.0,95119.0,0.3608]
[1739367209877,0.00015767,95123.0,95119.0,0.6608]
[1739367210076,0.2101603,95161.0,95130.0,0.29458057]
[1739367210383,0.2101603,95161.0,95119.0,0.6608]
[1739367210384,0.3608,95168.0,95148.0,0.3608]
[1739367210690,0.3608,95150.0,95120.0,0.0006]
[1739367210876,0.3608,95150.0,95104.0,0.3608]
[1739367210877,0.2102546,95119.0,95104.0,0.3608]
[1739367211084,0.2102241,95133.0,95118.0,0.3608]
[1739367211379,0.2101802,95152.0,95132.0,0.3608]
[1739367211596,0.2102124,95138.0,95123.0,0.00015766]
[1739367211883,0.29458057,95150.0,95131.0,0.3608]
[1739367212087,0.29458057,95150.0,95116.0,0.3608]
[1739367212088,0.2102045,95141.0,95116.0,0.3608]
[1739367212390,0.3608,95157.0,95125.0,0.3608]
[1739367212592,0.2102015,95143.0,95125.0,0.3608]
[1739367212782,0.3608,95157.0,95142.0,0.3608]
[1739367213090,0.18003496,95186.0,95156.0,0.3608]
[1739367213286,0.210161,95161.0,95156.0,0.3608]
[1739367213499,0.2101666,95159.0,95142.0,0.3608]
[1739367213681,0.210158,95162.0,95161.0,0.00015767]
[1739367214083,0.3608,95163.0,95142.0,0.3608]
[1739367214279,0.3608,95163.0,95152.0,0.00015767]
[1739367216087,0.2101412,95170.0,95153.0,0.3608]
[1739367216088,0.2101594,95162.0,95153.0,0.3608]
[1739367216283,0.29458057,95170.0,95153.0,0.3608]
[1739367216485,0.3608,95167.0,95153.0,0.3608]
[1739367216680,0.00108001,95181.0,95166.0,0.3608]
[1739367216889,0.29458057,95190.0,95166.0,0.3608]
[1739367217192,0.29458057,95190.0,95152.0,0.36095767]
[1739367217394,0.2101465,95168.0,95152.0,0.36095767]
[1739367217596,0.3608,95187.0,95152.0,0.36095767]
[1739367217597,0.2101512,95166.0,95152.0,0.36095767]
[1739367218293,0.3608,95169.0,95152.0,0.00015767]
[1739367218488,0.2101341,95173.0,95152.0,0.00015767]
[1739367218691,0.77900001,95204.0,95152.0,7e-08]
[1739367218692,0.2101767,95154.0,95152.0,7e-08]
[1739367218896,0.2102659,95114.0,95088.0,0.3608]
[1739367219090,0.0525427,95157.0,95077.0,0.3608]
[1739367219091,0.3608,95107.0,95077.0,0.3608]
[1739367219284,0.2103102,95094.0,95077.0,0.3608]
[1739367219482,0.3608,95121.0,95093.0,0.3608]
[1739367219691,0.3608,95121.0,95077.0,0.3608]
[1739367219692,0.3608,95112.0,95077.0,0.3608]
[1739367219995,0.3608,95097.0,95077.0,0.3608]
[1739367220193,0.00015767,95104.0,95087.0,0.3608]
[1739367220493,0.2102962,95100.0,95087.0,0.3608]
[1739367220692,0.2102676,95113.0,95099.0,0.3608]
[1739367220895,0.00015767,95103.0,95099.0,0.3608]
[1739367221092,0.2102367,95127.0,95101.0,0.3608]
[1739367221288,0.3608,95131.0,95115.0,0.3608]
[1739367221289,0.29458057,95130.0,95115.0,0.3608]
[1739367221486,0.3608,95123.0,95086.0,0.3608]
[1739367221686,0.2103065,95095.0,95086.0,0.3608]
[1739367221900,0.2102711,95111.0,95094.0,0.3608]
[1739367222192,0.2102471,95122.0,95110.0,0.3608]
[1739367222699,0.210231,95129.0,95121.0,0.3608]
[1739367223296,0.2102128,95138.0,95121.0,0.3608]
[1739367223500,0.29458057,95150.0,95118.0,0.3608]
[1739367223696,0.29458057,95150.0,95115.0,0.00015767]
[1739367223898,0.50481047,95130.0,95116.0,0.3608]
[1739367224099,0.3608,95161.0,95129.0,0.3608]
[1739367224285,0.3608,95161.0,95146.0,0.3608]
[1739367224703,0.2101592,95162.0,95146.0,0.3608]
[1739367225093,0.2101592,95162.0,95155.0,0.3608]
[1739367225294,0.2101679,95158.0,95155.0,0.3608]
[1739367225595,0.2101679,95158.0,95144.0,0.00015767]
[1739367225596,0.3608,95156.0,95144.0,0.00015767]
[1739367225891,0.3608,95145.0,95122.0,0.3608]
[1739367226097,0.3608,95130.0,95083.0,0.3608]
[1739367226294,0.3608,95120.0,95083.0,0.3608]
[1739367226698,0.2102925,95102.0,95083.0,0.3608]
[1739367226895,0.2102638,95115.0,95101.0,0.3608]
[1739367227200,0.2102327,95129.0,95111.0,0.3608]
[1739367227591,0.3608,95142.0,95111.0,0.3608]
[1739367227797,0.00015776,95130.0,95111.0,0.3608]
[1739367228096,0.00015776,95130.0,95117.0,0.00015776]
[1739367228294,0.210235,95128.0,95117.0,0.00015776]
[1739367228802,0.00015776,95130.0,95117.0,0.00015776]
[1739367229099,0.18356184,95123.0,95117.0,0.00015776]
[1739367229302,0.2102465,95122.0,95117.0,0.00015776]
[1739367229498,0.2102554,95118.0,95117.0,0.00015776]
[1739367229801,0.18356184,95123.0,95103.0,0.3608]
[1739367230198,0.18356184,95123.0,95112.0,0.3608]
[1739367230399,0.18356184,95123.0,95122.0,0.3608]
[1739367230894,0.18356184,95123.0,95112.0,0.3608]
[1739367231197,0.3608,95161.0,95122.0,0.3608]
[1739367231391,0.3608,95161.0,95147.0,0.3608]
[1739367231593,0.2101278,95176.0,95160.0,0.3608]
[1739367232292,0.4608,95200.0,95171.0,0.3608]
[1739367232293,0.2100947,95191.0,95171.0,0.3608]
[1739367232493,0.1,95200.0,95190.0,0.3608]
[1739367232795,0.1,95200.0,95198.0,0.3608]
[1739367233701,0.1,95200.0,95190.0,0.3608]
[1739367234895,0.1,95200.0,95199.0,0.3608]
[1739367235105,0.1,95200.0,95190.0,0.3608]
[1739367235299,0.3608,95197.0,95189.0,0.00015757]
[1739367235601,0.1,95200.0,95189.0,0.00015757]
[1739367235794,0.3608,95190.0,95157.0,0.3608]
[1739367236098,0.2101323,95174.0,95157.0,0.3608]
[1739367236305,0.3608,95168.0,95157.0,0.3608]
[1739367236501,0.210165,95160.0,95144.0,0.3608]
[1739367236708,0.3608,95148.0,95122.0,0.18425531]
[1739367237003,0.3608,95125.0,95100.0,0.30934379]
[1739367237204,0.3608,95106.0,95065.0,0.3608]
[1739367237394,0.2102741,95110.0,95080.0,0.29458057]
[1739367237597,0.2102741,95110.0,95103.0,0.00015766]
[1739367237998,0.00015766,95108.0,95103.0,0.00015766]
[1739367238404,0.2102801,95107.0,95103.0,0.00015766]
[1739367238800,0.00015766,95108.0,95103.0,0.00015766]
[1739367239108,0.3608,95137.0,95105.0,0.3608]
[1739367239497,0.3608,95126.0,95105.0,0.3608]
[1739367239696,0.3608,95112.0,95103.0,0.00015766]
[1739367239900,0.3608,95126.0,95103.0,0.00015766]
[1739367240108,0.2102282,95131.0,95121.0,0.3608]
[1739367240298,0.3608,95147.0,95130.0,0.3608]
[1739367240502,0.2101678,95158.0,95139.0,0.7216]
[1739367240804,0.2102339,95128.0,95110.0,0.3608]
[1739367241009,0.2102433,95124.0,95110.0,0.3608]
[1739367241194,0.2102092,95140.0,95120.0,0.3608]
[1739367241399,0.2102092,95140.0,95135.0,0.3608]
[1739367241600,0.21036678,95140.0,95135.0,0.3608]
[1739367241816,0.00015758,95140.0,95138.0,0.3608]
[1739367242002,0.29458057,95180.0,95138.0,0.3608]
[1739367242003,0.3608,95199.0,95139.0,1.5]
[1739367242208,0.1,95200.0,95198.0,0.3608]
[1739367242595,0.00210086,95199.0,95198.0,0.3608]
[1739367242796,0.00210086,95199.0,95198.0,0.2338]
[1739367243400,0.00210086,95199.0,95197.0,0.3608]
[1739367243601,0.00210086,95199.0,95161.0,1.50056]
[1739367243602,0.7216,95198.0,95161.0,0.00056]
[1739367243814,0.00210086,95199.0,95094.0,0.01576]
[1739367243815,0.29458057,95171.0,95151.0,0.3608]
[1739367244112,0.29458057,95171.0,95094.0,0.4323]
[1739367244113,0.570974,95156.0,95132.0,0.3608]
[1739367244310,0.29458057,95150.0,95136.0,0.00064]
[1739367244619,0.29458057,95150.0,95132.0,0.3608]
[1739367244906,0.17650086,95199.0,95149.0,0.7216]
[1739367244907,0.00210086,95199.0,95149.0,0.7216]
[1739367245106,0.00210086,95199.0,95193.0,0.3608]
[1739367245301,0.00210086,95199.0,95197.0,0.3608]
[1739367245501,0.00210086,95199.0,95198.0,0.3608]
[1739367245908,0.1,95200.0,95189.0,0.3608]
[1739367246110,0.2100967,95190.0,95189.0,0.3608]
[1739367246410,0.2100967,95190.0,95186.0,0.00015757]
[1739367246812,0.3608,95199.0,95186.0,0.00015757]
[1739367247008,0.2101033,95188.0,95186.0,0.00015757]
[1739367247306,0.2101245,95178.0,95156.0,0.3608]
[1739367248109,0.2100951,95191.0,95177.0,0.3608]
[1739367248409,0.1,95200.0,95190.0,0.3608]
[1739367248615,0.1,95200.0,95160.0,0.29458057]
[1739367248616,0.2100769,95199.0,95185.0,0.3608]
[1739367248911,0.2101029,95188.0,95185.0,0.3608]
[1739367249113,0.2101029,95188.0,95174.0,0.36095766]
[1739367249114,0.21013,95175.0,95174.0,0.00015766]
[1739367250500,0.3,95175.0,95153.0,0.3608]
[1739367250707,0.3608,95157.0,95125.0,0.3608]
[1739367251216,0.3608,95178.0,95156.0,0.3608]
[1739367251407,0.2101329,95174.0,95156.0,0.3608]
[1739367251709,0.2101142,95183.0,95168.0,0.3608]
[1739367251913,0.2101142,95183.0,95180.0,0.3608]
[1739367252108,0.10140001,95200.0,95180.0,0.3608]
[1739367252109,0.1,95200.0,95182.0,0.3608]
[1739367252311,0.12351961,95175.0,95156.0,0.3608]
[1739367252608,0.2101431,95170.0,95156.0,0.3608]
[1739367253105,0.2101431,95170.0,95156.0,0.36095766]
[1739367253507,0.12351961,95175.0,95169.0,0.3608]
[1739367253707,0.12351961,95175.0,95170.0,0.3608]